fUSD/lending_fUSD_20250702
["ID","MTS","AMOUNT","RATE_DAILY","PERIOD"]
[368986223,1751425851066,-318.09,0.00016985,2]
[368986224,1751425851075,-498.58100603,0.00016985,2]
[368986225,1751425851085,-490.0,0.00016985,2]
[368986226,1751425851094,-490.0,0.00016985,2]
[368986227,1751425851103,-490.0,0.00016985,2]
[368986228,1751425851112,-222.43,0.00016985,2]
[368986229,1751425851122,-468.88270174,0.00016985,2]
[368986230,1751425851131,-490.0,0.00016985,2]
[368986231,1751425851140,-490.0,0.00016985,2]
[368986232,1751425851149,-490.0,0.00016985,2]
[368986233,1751425851158,-490.0,0.00016985,2]
[368986234,1751425851168,-490.0,0.00016985,2]
[368986235,1751425851177,-490.0,0.00016985,2]
[368986236,1751425851186,-291.67123365,0.00016985,2]
[368986237,1751425851195,-490.0,0.00016985,2]
[368986238,1751425851204,-490.0,0.00016985,2]
[368986239,1751425851213,-490.0,0.00016985,2]
[368986240,1751425851222,-490.0,0.00016985,2]
[368986241,1751425851231,-490.0,0.00016985,2]
[368986242,1751425851241,-490.0,0.00016985,2]
[368986243,1751425851250,-178.98,0.00016985,2]
[368986244,1751425851259,-490.0,0.00016985,2]
[368986245,1751425851269,-490.0,0.00016985,2]
[368986246,1751425851279,-490.0,0.00016985,2]
[368986247,1751425851288,-490.0,0.00016985,2]
[368986248,1751425851298,-490.0,0.00016985,2]
[368986249,1751425851307,-588.74,0.00016985,2]
[368986250,1751425851317,-490.0,0.00016985,2]
[368986251,1751425851326,-490.0,0.00016985,2]
[368986252,1751425851336,-490.0,0.00016985,2]
[368986253,1751425851345,-490.0,0.00016985,2]
[368986254,1751425851355,-494.32512924,0.00016985,2]
[368986255,1751425851364,-490.0,0.00016985,2]
[368986256,1751425851374,-490.0,0.00016985,2]
[368986257,1751425851383,-490.0,0.00016985,2]
[368986258,1751425851393,-490.0,0.00016985,2]
[368986259,1751425851403,-490.0,0.00016985,2]
[368986260,1751425851412,-490.0,0.00016985,2]
[368986261,1751425851422,-490.0,0.00016985,2]
[368986262,1751425851431,-490.0,0.00016985,2]
[368986263,1751425851441,-490.0,0.00016985,2]
[368986264,1751425851451,-612.77606845,0.00016985,2]
[368986265,1751425851460,-490.0,0.00016985,2]
[368986266,1751425851470,-490.0,0.00016985,2]
[368986267,1751425851482,-396.27,0.00016985,2]
[368986268,1751425851492,-490.0,0.00016985,2]
[368986269,1751425851502,-490.0,0.00016985,2]
[368986270,1751425851511,-234.01439974,0.00016985,2]
[368986271,1751425851521,-490.0,0.00016985,2]
[368986272,1751425851531,-490.0,0.00016985,2]
[368986273,1751425851541,-177.28,0.00016985,2]
[368986274,1751425851550,-490.0,0.00016985,2]
[368986275,1751425851559,-490.0,0.00016985,2]
[368986276,1751425851569,-490.0,0.00016985,2]
[368986277,1751425851578,-490.0,0.00016985,2]
[368986278,1751425851587,-490.0,0.00016985,2]
[368986279,1751425851597,-490.0,0.00016985,2]
[368986280,1751425851606,-490.0,0.00016985,2]
[368986281,1751425851616,-490.0,0.00016985,2]
[368986282,1751425851626,-490.0,0.00016985,2]
[368986283,1751425851635,-490.0,0.00016985,2]
[368986284,1751425851647,-490.0,0.00016985,2]
[368986285,1751425851658,-490.0,0.00016985,2]
[368986286,1751425851668,-490.0,0.00016985,2]
[368986287,1751425851677,-490.0,0.00016985,2]
[368986288,1751425851688,-490.0,0.00016985,2]
[368986289,1751425851698,-490.0,0.00016985,2]
[368986290,1751425851710,-490.0,0.00016985,2]
[368986291,1751425851720,-490.0,0.00016985,2]
[368986292,1751425851730,-490.0,0.00016985,2]
[368986293,1751425851742,-490.0,0.00016985,2]
[368986294,1751425851753,-490.0,0.00016985,2]
[368986295,1751425851763,-490.0,0.00016985,2]
[368986296,1751425851772,-490.0,0.00016985,2]
[368986297,1751425851781,-362.79,0.00016985,2]
[368986298,1751425851791,-233.1951835,0.00016985,2]
[368986299,1751425851800,-490.0,0.00016985,2]
[368986300,1751425851810,-490.0,0.00016985,2]
[368986301,1751425851820,-762.88,0.00016985,2]
[368986302,1751425851830,-490.0,0.00016985,2]
[368986303,1751425851841,-490.0,0.00016985,2]
[368986304,1751425851853,-490.0,0.00016985,2]
[368986305,1751425851863,-490.0,0.00016985,2]
[368986306,1751425851872,-493.7568024,0.00016985,2]
[368986307,1751425851882,-490.0,0.00016985,2]
[368986308,1751425851891,-490.0,0.00016985,2]
[368986309,1751425851901,-490.0,0.00016985,2]
[368986310,1751425851911,-490.0,0.00016985,2]
[368986311,1751425851923,-490.0,0.00016985,2]
[368986312,1751425851934,-546.56,0.00016985,2]
[368986313,1751425851943,-490.0,0.00016985,2]
[368986314,1751425851953,-490.0,0.00016985,2]
[368986315,1751425851963,-498.22342088,0.00016985,2]
[368986316,1751425851972,-496.64558849,0.00016985,2]
[368986317,1751425851982,-490.0,0.00016985,2]
[368986318,1751425851991,-490.0,0.00016985,2]
[368986319,1751425852001,-497.42773522,0.00016985,2]
[368986320,1751425852011,-490.0,0.00016985,2]
[368986321,1751425852020,-490.0,0.00016985,2]
[368986322,1751425852030,-492.29299891,0.00016985,2]
[368986323,1751425852039,-499.99154656,0.00016985,2]
[368986324,1751425852048,-490.0,0.00016985,2]
[368986325,1751425852058,-490.0,0.00016985,2]
[368986326,1751425852067,-490.0,0.00016985,2]
[368986327,1751425852077,-681.12,0.00016985,2]
[368986328,1751425852086,-1201.76,0.00016985,2]
[368986329,1751425852095,-490.0,0.00016985,2]
[368986330,1751425852105,-490.0,0.00016985,2]
[368986331,1751425852114,-493.31471011,0.00016985,2]
[368986332,1751425852123,-490.0,0.00016985,2]
[368986333,1751425852133,-513.00420668,0.00016985,2]
[368986334,1751425852142,-491.58409738,0.00016985,2]
[368986335,1751425852152,-490.0,0.00016985,2]
[368986336,1751425852162,-496.51879046,0.00016985,2]
[368986337,1751425852172,-508.24657165,0.00016985,2]
[368986338,1751425852182,-490.0,0.00016985,2]
[368986339,1751425852192,-490.0,0.00016985,2]
[368986340,1751425852201,-494.1742089,0.00016985,2]
[368986341,1751425852211,-490.0,0.00016985,2]
[368986342,1751425852220,-490.0,0.00016985,2]
[368986343,1751425852230,-490.0,0.00016985,2]
[368986344,1751425852239,-491.14593376,0.00016985,2]
[368986345,1751425852249,-490.0,0.00016985,2]
[368986346,1751425852259,-254.49849366,0.00016985,2]
[368986347,1751425852268,-490.0,0.00016985,2]
[368986348,1751425852278,-490.0,0.00016985,2]
[368986349,1751425852288,-492.02327602,0.00016985,2]
[368986350,1751425852298,-490.0,0.00016985,2]
[368986351,1751425852307,-490.0,0.00016985,2]
[368986352,1751425852317,-490.0,0.00016985,2]
[368986353,1751425852327,-490.0,0.00016985,2]
[368986354,1751425852336,-491.67743303,0.00016985,2]
[368986355,1751425852347,-490.0,0.00016985,2]
[368986356,1751425852356,-493.47714801,0.00016985,2]
[368986357,1751425852366,-490.0,0.00016985,2]
[368986358,1751425852376,-492.57594226,0.00016985,2]
[368986359,1751425852386,-490.0,0.00016985,2]
[368986360,1751425852396,-491.10677915,0.00016985,2]
[368986361,1751425852405,-494.05847794,0.00016985,2]
[368986362,1751425852415,-490.0,0.00016985,2]
[368986363,1751425852426,-490.0,0.00016985,2]
[368986364,1751425852435,-490.0,0.00016985,2]
[368986365,1751425852445,-490.0,0.00016985,2]
[368986366,1751425852455,-493.13054311,0.00016985,2]
[368986367,1751425852464,-490.0,0.00016985,2]
[368986368,1751425852474,-490.0,0.00016985,2]
[368986369,1751425852484,-491.56002538,0.00016985,2]
[368986370,1751425852494,-490.0,0.00016985,2]
[368986371,1751425852509,-491.93031954,0.00016985,2]
[368986372,1751425852518,-282.12,0.00016985,2]
[368986373,1751425852528,-491.40668382,0.00016985,2]
[368986374,1751425852538,-490.0,0.00016985,2]
[368986375,1751425852553,-490.0,0.00016985,2]
[368986376,1751425852563,-1121.74,0.00016985,2]
[368986377,1751425852572,-1153.32043184,0.00016985,2]
[368986378,1751425852581,-490.0,0.00016985,2]
[368986379,1751425852591,-409.76361196,0.00016985,2]
[368986380,1751425852600,-490.0,0.00016985,2]
[368986381,1751425852611,-492.50795948,0.00016985,2]
[368986382,1751425852620,-451.24,0.00016985,2]
[368986383,1751425852631,-612.44,0.00016985,2]
[368986384,1751425852642,-247.47043194,0.00016985,2]
[368986385,1751425852653,-490.0,0.00016985,2]
[368986386,1751425852664,-490.0,0.00016985,2]
[368986387,1751425852675,-490.0,0.00016985,2]
[368986388,1751425852686,-490.0,0.00016985,2]
[368986389,1751425852698,-490.0,0.00016985,2]
[368986390,1751425852708,-490.0,0.00016985,2]
[368986391,1751425852719,-490.0,0.00016985,2]
[368986392,1751425852730,-497.10680194,0.00016985,2]
[368986393,1751425852743,-490.0,0.00016985,2]
[368986394,1751425852753,-490.0,0.00016985,2]
[368986395,1751425852763,-490.0,0.00016985,2]
[368986396,1751425852772,-373.49933305,0.00016985,2]
[368986397,1751425852781,-493.73933433,0.00016985,2]
[368986398,1751425852791,-490.0,0.00016985,2]
[368986399,1751425852801,-492.24346057,0.00016985,2]
[368986400,1751425852810,-490.93898638,0.00016985,2]
[368986401,1751425852820,-723.51,0.00016985,2]
[368986402,1751425852830,-491.05962219,0.00016985,2]
[368986403,1751425852840,-490.0,0.00016985,2]
[368986404,1751425852849,-490.0,0.00016985,2]
[368986405,1751425852859,-490.0,0.00016985,2]
[368986406,1751425852869,-491.79739444,0.00016985,2]
[368986407,1751425852878,-494.53456346,0.00016985,2]
[368986408,1751425852887,-493.79107755,0.00016985,2]
[368986409,1751425852898,-491.56173001,0.00016985,2]
[368986410,1751425852907,-499.71994622,0.00016985,2]
[368986411,1751425852917,-490.0,0.00016985,2]
[368986412,1751425852927,-492.94068818,0.00016985,2]
[368986413,1751425852937,-494.30412979,0.00016985,2]
[368986414,1751425852946,-490.0,0.00016985,2]
[368986415,1751425852956,-490.0,0.00016985,2]
[368986416,1751425852965,-490.0,0.00016985,2]
[368986417,1751425852975,-493.16829511,0.00016985,2]
[368986418,1751425852985,-490.0,0.00016985,2]
[368986419,1751425852995,-611.52591612,0.00016985,2]
[368986420,1751425853004,-490.0,0.00016985,2]
[368986421,1751425853014,-490.0,0.00016985,2]
[368986422,1751425853023,-1072.81,0.00016985,2]
[368986423,1751425853033,-498.5770618,0.00016985,2]
[368986424,1751425853042,-492.70768099,0.00016985,2]
[368986425,1751425853051,-493.07346436,0.00016985,2]
[368986426,1751425853061,-490.0,0.00016985,2]
[368986427,1751425853071,-490.0,0.00016985,2]
[368986428,1751425853080,-490.0,0.00016985,2]
[368986429,1751425853090,-490.0,0.00016985,2]
[368986430,1751425853099,-490.0,0.00016985,2]
[368986431,1751425853110,-493.83573024,0.00016985,2]
[368986432,1751425853120,-502.85543212,0.00016985,2]
[368986433,1751425853132,-491.71343829,0.00016985,2]
[368986434,1751425853142,-490.0,0.00016985,2]
[368986435,1751425853153,-491.54534068,0.00016985,2]
[368986436,1751425853162,-1292.01,0.00016985,2]
[368986437,1751425853172,-492.09059932,0.00016985,2]
[368986438,1751425853182,-490.0,0.00016985,2]
[368986439,1751425853192,-491.76940283,0.00016985,2]
[368986440,1751425853202,-151.0,0.00016985,2]
[368986441,1751425853212,-267.51307163,0.00016985,2]
[368986442,1751425853223,-490.0,0.00016985,2]
[368986443,1751425853234,-490.0,0.00016985,2]
[368986444,1751425853244,-490.0,0.00016985,2]
[368986445,1751425853255,-229.58085367,0.00016985,2]
[368986446,1751425853270,-491.03239033,0.00016985,2]
[368986447,1751425853281,-490.0,0.00016985,2]
[368986448,1751425853291,-490.0,0.00016985,2]
[368986449,1751425853301,-490.0,0.00016985,2]
[368986450,1751425853312,-493.29582231,0.00016985,2]
[368986451,1751425853323,-492.69750935,0.00016985,2]
[368986452,1751425853339,-495.41328049,0.00016985,2]
[368986453,1751425853348,-724.77,0.00016985,2]
[368986454,1751425853358,-490.0,0.00016985,2]
[368986455,1751425853368,-490.0,0.00016985,2]
[368986456,1751425853378,-490.0,0.00016985,2]
[368986457,1751425853389,-491.11669176,0.00016985,2]
[368986458,1751425853399,-490.0,0.00016985,2]
[368986459,1751425853408,-490.0,0.00016985,2]
[368986460,1751425853419,-490.0,0.00016985,2]
[368986461,1751425853428,-490.0,0.00016985,2]
[368986462,1751425853438,-502.59304603,0.00016985,2]
[368986463,1751425853634,-493.76295393,0.00016985,2]
[368986464,1751425853646,-492.19600419,0.00016985,2]
[368986465,1751425853656,-490.0,0.00016985,2]
[368986466,1751425853666,-490.0,0.00016985,2]
[368986467,1751425853675,-490.0,0.00016985,2]
[368986468,1751425853684,-492.94691635,0.00016985,2]
[368986469,1751425853694,-490.0,0.00016985,2]
[368986470,1751425853703,-490.0,0.00016985,2]
[368986471,1751425853713,-490.0,0.00016985,2]
[368986472,1751425853722,-489.77198334,0.00016985,2]
[368986473,1751425853731,-490.0,0.00016985,2]
[368986474,1751425853741,-487.62384242,0.00016985,2]
[368986475,1751425853751,-490.0,0.00016985,2]
[368986476,1751425853760,-494.34108208,0.00016985,2]
[368986477,1751425853769,-490.0,0.00016985,2]
[368986478,1751425853778,-490.0,0.00016985,2]
[368986479,1751425853787,-591.73474804,0.00016985,2]
[368986480,1751425853796,-498.23672669,0.00016985,2]
[368986481,1751425853806,-490.0,0.00016985,2]
[368986482,1751425853815,-490.0,0.00016985,2]
[368986483,1751425853824,-490.0,0.00016985,2]
[368986484,1751425853834,-492.08331473,0.00016985,2]
[368986485,1751425853843,-494.14063193,0.00016985,2]
[368986486,1751425853853,-490.0,0.00016985,2]
[368986487,1751425853862,-611.77,0.00016985,2]
[368986488,1751425853872,-430.65306487,0.00016985,2]
[368986489,1751425853881,-493.13234662,0.00016985,2]
[368986490,1751425853891,-490.0,0.00016985,2]
[368986491,1751425853900,-492.51899482,0.00016985,2]
[368986492,1751425853910,-490.0,0.00016985,2]
[368986493,1751425853920,-490.0,0.00016985,2]
[368986494,1751425853930,-818.32,0.00016985,2]
[368986495,1751425853939,-906.48,0.00016985,2]
[368986496,1751425853948,-490.0,0.00016985,2]
[368986497,1751425853957,-490.0,0.00016985,2]
[368986498,1751425853967,-490.0,0.00016985,2]
[368986499,1751425853976,-495.2307722,0.00016985,2]
[368986500,1751425853985,-759.77,0.00016985,2]
[368986501,1751425853995,-602.535504,0.00016985,2]
[368986502,1751425854004,-312.08674233,0.00016985,2]
[368986503,1751425854013,-490.0,0.00016985,2]
[368986504,1751425854023,-602.535504,0.00016985,2]
[368986505,1751425854032,-470.8655537,0.00016985,2]
[368986506,1751425854041,-490.0,0.00016985,2]
[368986507,1751425854050,-566.94,0.00016985,2]
[368986508,1751425854059,-492.88464696,0.00016985,2]
[368986509,1751425854069,-490.0,0.00016985,2]
[368986510,1751425854078,-490.0,0.00016985,2]
[368986511,1751425854087,-629.41066053,0.00016985,2]
[368986512,1751425854097,-493.85387131,0.00016985,2]
[368986513,1751425854106,-490.0,0.00016985,2]
[368986514,1751425854116,-490.0,0.00016985,2]
[368986515,1751425854125,-490.0,0.00016985,2]
[368986516,1751425854134,-490.0,0.00016985,2]
[368986517,1751425854143,-490.0,0.00016985,2]
[368986518,1751425854152,-490.0,0.00016985,2]
[368986519,1751425854161,-168.725309,0.00016985,2]
[368986520,1751425854170,-490.0,0.00016985,2]
[368986521,1751425854179,-490.0,0.00016985,2]
[368986522,1751425854188,-490.0,0.00016985,2]
[368986523,1751425854197,-168.725309,0.00016985,2]
[368986524,1751425854207,-499.77833066,0.00016985,2]
[368986525,1751425854215,-490.0,0.00016985,2]
[368986526,1751425854225,-561.42,0.00016985,2]
[368986527,1751425854235,-490.0,0.00016985,2]
[368986528,1751425854246,-490.0,0.00016985,2]
[368986529,1751425854255,-497.89006697,0.00016985,2]
[368986530,1751425854264,-627.67,0.00016985,2]
[368986531,1751425854274,-490.0,0.00016985,2]
[368986532,1751425854283,-490.0,0.00016985,2]
[368986533,1751425854296,-490.0,0.00016985,2]
[368986534,1751425854305,-490.0,0.00016985,2]
[368986535,1751425854314,-490.0,0.00016985,2]
[368986536,1751425854324,-490.0,0.00016985,2]
[368986537,1751425854334,-562.73,0.00016985,2]
[368986538,1751425854343,-490.0,0.00016985,2]
[368986539,1751425854354,-490.0,0.00016985,2]
[368986540,1751425854365,-496.7885591,0.00016985,2]
[368986541,1751425854374,-495.96554107,0.00016985,2]
[368986542,1751425854384,-490.0,0.00016985,2]
[368986543,1751425854394,-496.92401912,0.00016985,2]
[368986544,1751425854403,-490.0,0.00016985,2]
[368986545,1751425854412,-490.0,0.00016985,2]
[368986546,1751425854422,-493.46480076,0.00016985,2]
[368986547,1751425854432,-490.0,0.00016985,2]
[368986548,1751425854442,-490.0,0.00016985,2]
[368986549,1751425854453,-490.0,0.00016985,2]
[368986550,1751425854463,-500.14809023,0.00016985,2]
[368986551,1751425854472,-490.0,0.00016985,2]
[368986552,1751425854482,-490.0,0.00016985,2]
[368986553,1751425854491,-495.37843078,0.00016985,2]
[368986554,1751425854501,-493.98809754,0.00016985,2]
[368986555,1751425854510,-494.59359967,0.00016985,2]
[368986556,1751425854520,-5663.42,0.00016985,2]
[368986557,1751425854529,-490.0,0.00016985,2]
[368986558,1751425854539,-490.0,0.00016985,2]
[368986559,1751425854548,-493.27,0.00016985,2]
[368986560,1751425854558,-157.61812805,0.00016985,2]
[368986561,1751425854567,-490.0,0.00016985,2]
[368986562,1751425854577,-490.0,0.00016985,2]
[368986563,1751425854587,-490.0,0.00016985,2]
[368986564,1751425854596,-495.94545446,0.00016985,2]
[368986565,1751425854607,-490.0,0.00016985,2]
[368986566,1751425854617,-490.0,0.00016985,2]
[368986567,1751425854627,-490.0,0.00016985,2]
[368986568,1751425854636,-490.0,0.00016985,2]
[368986569,1751425854647,-496.47051748,0.00016985,2]
[368986570,1751425854660,-1640.69,0.00016985,2]
[368986571,1751425854671,-493.17939423,0.00016985,2]
[368986572,1751425854682,-490.0,0.00016985,2]
[368986573,1751425854694,-490.0,0.00016985,2]
[368986574,1751425854704,-195.479347,0.00016985,2]
[368986575,1751425854714,-195.479347,0.00016985,2]
[368986576,1751425854725,-494.17560808,0.00016985,2]
[368986577,1751425854734,-490.0,0.00016985,2]
[368986578,1751425854745,-1173.34,0.00016985,2]
[368986579,1751425854756,-490.0,0.00016985,2]
[368986580,1751425854765,-561.301057,0.00016985,2]
[368986581,1751425854777,-561.301057,0.00016985,2]
[368986582,1751425854786,-496.72303989,0.00016985,2]
[368986583,1751425854795,-4527.71,0.00016985,2]
[368986584,1751425854804,-195.479347,0.00016985,2]
[368986585,1751425854814,-542.11,0.00016985,2]
[368986586,1751425854824,-490.0,0.00016985,2]
[368986587,1751425854834,-1517.8,0.00016985,2]
[368986588,1751425854844,-195.479347,0.00016985,2]
[368986589,1751425854854,-561.301057,0.00016985,2]
[368986590,1751425854864,-561.301057,0.00016985,2]
[368986591,1751425854873,-490.0,0.00016985,2]
[368986592,1751425854883,-924.37,0.00016985,2]
[368986593,1751425854893,-490.0,0.00016985,2]
[368986594,1751425854902,-151.0,0.00016985,2]
[368986595,1751425854911,-981.28,0.00016985,2]
[368986596,1751425854921,-151.0,0.00016985,2]
[368986597,1751425854931,-495.18615483,0.00016985,2]
[368986598,1751425854941,-490.0,0.00016985,2]
[368986599,1751425854951,-491.60362062,0.00016985,2]
[368986600,1751425854961,-490.0,0.00016985,2]
[368986601,1751425854971,-490.0,0.00016985,2]
[368986602,1751425854980,-490.0,0.00016985,2]
[368986603,1751425854990,-151.0,0.00016986,2]
[368986604,1751425855000,-490.0,0.00016986,2]
[368986605,1751425855011,-151.0,0.00016986,2]
[368986606,1751425855020,-151.0,0.00016986,2]
[368986607,1751425855032,-490.0,0.00016986,2]
[368986608,1751425855043,-490.0,0.00016986,2]
[368986609,1751425855053,-490.0,0.00016986,2]
[368986610,1751425855063,-490.0,0.00016986,2]
[368986611,1751425855073,-490.0,0.00016986,2]
[368986612,1751425855083,-490.0,0.00016986,2]
[368986613,1751425855092,-490.0,0.00016986,2]
[368986614,1751425855101,-490.0,0.00016986,2]
[368986615,1751425855111,-436.43011982,0.00016986,2]
[368986616,1751425855120,-490.0,0.00016986,2]
[368986617,1751425855130,-490.0,0.00016986,2]
[368986618,1751425855139,-151.0,0.00016986,2]
[368986619,1751425855148,-490.0,0.00016986,2]
[368986620,1751425855159,-490.0,0.00016986,2]
[368986621,1751425855168,-490.0,0.00016986,2]
[368986622,1751425855180,-490.0,0.00016986,2]
[368986623,1751425855190,-490.0,0.00016986,2]
[368986624,1751425855200,-490.0,0.00016986,2]
[368986625,1751425855211,-490.0,0.00016986,2]
[368986626,1751425855222,-490.0,0.00016986,2]
[368986627,1751425855243,-490.0,0.00016986,2]
[368986628,1751425855253,-490.0,0.00016986,2]
[368986629,1751425855265,-490.0,0.00016986,2]
[368986630,1751425855275,-490.0,0.00016986,2]
[368986631,1751425855285,-490.0,0.00016986,2]
[368986632,1751425855295,-490.0,0.00016986,2]
[368986633,1751425855304,-490.0,0.00016986,2]
[368986634,1751425855314,-627.23,0.00016986,2]
[368986635,1751425855323,-490.0,0.00016986,2]
[368986636,1751425855333,-490.0,0.00016986,2]
[368986637,1751425855343,-234.5766649,0.00016986,2]
[368986638,1751425855353,-490.0,0.00016986,2]
[368986639,1751425855363,-490.0,0.00016986,2]
[368986640,1751425855372,-151.0,0.00016986,2]
[368986641,1751425855383,-151.0,0.00016986,2]
[368986642,1751425855392,-244.93604,0.00016986,2]
[368986643,1751425855402,-244.93604,0.00016986,2]
[368986644,1751425855413,-602.535504,0.00016986,2]
[368986645,1751425855422,-602.535504,0.00016986,2]
[368986646,1751425855432,-168.725309,0.00016986,2]
[368986647,1751425855442,-168.725309,0.00016986,2]
[368986648,1751425855452,-15272.45024879,0.00016999,2]
[368986649,1751425855461,-320.696192,0.00016999,2]
[368986650,1751425855471,-320.696192,0.00016999,2]
[368986651,1751425855480,-151.0,0.00016999,2]
[368986652,1751425855490,-195.479347,0.00016999,2]
[368986653,1751425855500,-195.479347,0.00016999,2]
[368986654,1751425855510,-151.0,0.00016999,2]
[368986655,1751425855520,-399.63,0.00017,2]
[368986656,1751425855530,-31120.0,0.00017,2]
[368986657,1751425855539,-808.4104602,0.00017,2]
[368986658,1751425855549,-300.0,0.00017,2]
[368986659,1751425855559,-151.0,0.00017,2]
[368986660,1751425855569,-155.536179,0.00017,2]
[368986661,1751425855578,-240.0,0.00017,2]
[368986662,1751425855588,-1010.0,0.00017,2]
[368986663,1751425855598,-1089.82979781,0.00017036,2]
[368986664,1751425855608,-1309.26565224,0.00017043,2]
[368986665,1751425855618,-285.97,0.00017061,2]
[368986666,1751425855628,-235.60175376,0.00017062,2]
[368986667,1751425855638,-9394.6625837,0.00017076,2]
[368986668,1751425855648,-495.05403445,0.00017083,2]
[368986669,1751425855658,-622.29758687,0.00017083,2]
[368986670,1751425855671,-491.42276223,0.00017083,2]
[368986671,1751425855680,-494.01856053,0.00017083,2]
[368986672,1751425855689,-494.06372188,0.00017083,2]
[368986673,1751425855699,-493.30710249,0.00017083,2]
[368986674,1751425855708,-490.0,0.00017083,2]
[368986675,1751425855718,-490.0,0.00017083,2]
[368986676,1751425855727,-490.0,0.00017083,2]
[368986677,1751425855737,-490.0,0.00017083,2]
[368986678,1751425855746,-490.0,0.00017083,2]
[368986679,1751425855755,-490.0,0.00017083,2]
[368986680,1751425855765,-490.0,0.00017083,2]
[368986681,1751425855774,-1722.53,0.00017083,2]
[368986682,1751425855783,-532.19,0.00017083,2]
[368986683,1751425855792,-2559.13,0.00017083,2]
[368986684,1751425855802,-684.78,0.00017083,2]
[368986685,1751425855811,-913.18,0.00017083,2]
[368986686,1751425855820,-1627.73,0.00017083,2]
[368986687,1751425855830,-1589.47,0.00017083,2]
[368986688,1751425855840,-490.0,0.00017083,2]
[368986689,1751425855849,-1286.08,0.00017083,2]
[368986690,1751425855858,-490.0,0.00017083,2]
[368986691,1751425855868,-1178.53,0.00017083,2]
[368986692,1751425855877,-32854.68,0.00017083,2]
[368986693,1751425855887,-1687.13,0.00017083,2]
[368986694,1751425855897,-561.301057,0.00017083,2]
[368986695,1751425855906,-561.301057,0.00017083,2]
[368986696,1751425855915,-197.15569495,0.00017099,2]
[368986697,1751425855924,-197.53079602,0.00017099,2]
[368986698,1751425855934,-1309.26565224,0.00017115,2]
[368986699,1751425855943,-1957.12761592,0.00017146,2]
[368986700,1751425856039,-3239.9696096,0.00017151,2]
[368986701,1751425856049,-72244.7552281,0.00017151,2]
[368986702,1751425856058,-562.0,0.00017152,2]
[368986703,1751425856068,-165760.7750152,0.00017163,2]
[368986704,1751425856077,-195.479347,0.00017163,2]
[368986705,1751425856087,-561.301057,0.00017163,2]
[368986706,1751425856099,-195.479347,0.00017163,2]
[368986707,1751425856110,-561.301057,0.00017163,2]
[368986708,1751425856121,-151.0,0.00017163,2]
[368986709,1751425856131,-562.0,0.00017169,2]
[368986710,1751425856141,-14310.7337938,0.00017175,2]
[368986711,1751425856152,-4003.6467842,0.00017175,2]
[368986712,1751425856162,-1109.5972975,0.00017175,2]
[368986713,1751425856173,-151.0,0.00017175,2]
[368986714,1751425856184,-602.535504,0.00017175,2]
[368986715,1751425856194,-602.535504,0.00017175,2]
[368986716,1751425856203,-168.725309,0.00017175,2]
[368986717,1751425856213,-168.725309,0.00017175,2]
[368986718,1751425856223,-252.21875965,0.00017176,2]
[368986719,1751425856232,-205.04474888,0.00017176,2]
[368986720,1751425856240,-150.0,0.00017176,2]
[368986721,1751425856250,-2597.3836792,0.00017182,2]
[368986722,1751425856259,-195.479347,0.00017182,2]